[Event "ECo-C Extraliga 2023-24"]
[Site "Slovakia"]
[Date "2024.02.25"]
[Round "8.5"]
[White "Kukel, Imre"]
[Black "Kusa, Jakub"]
[Result "0-1"]
[ECO "C88"]
[WhiteElo "2271"]
[BlackElo "2350"]
[Annotator "TA"]
[PlyCount "218"]
[EventDate "2023.10.06"]
[EventType "team-tourn"]
[EventCountry "SVK"]
[SourceTitle "playchess.com"]
[Source "ChessBase"]
[SourceQuality "1"]
[TimeControl "40/5400+30:1800+30"]

{[%evp 20,217,20,27,23,18,20,18,29,11,19,16,10,15,19,6,14,-39,-34,-52,-52,-35,-30,-71,-62,-55,-41,-61,-48,-57,-28,-31,-16,-88,0,0,0,0,0,0,0,0,-5,-4,-2,-12,0,0,0,0,0,0,0,0,0,0,0,0,0,0,0,0,0,0,0,-16,-20,-25,0,0,0,0,0,0,0,0,0,-90,0,-20,-20,-20,-20,-20,-20,-20,-20,-62,-28,-64,0,-43,-43,-43,0,-43,0,-43,-20,-51,-35,-35,-35,-35,-35,-51,-51,-51,-8,-8,-8,-91,-50,-93,-8,-8,-8,-116,-58,-58,-10,-58,-11,-32,0,0,0,0,0,0,0,0,0,-29965,-29965,-29959,-29961,-29975,-29975,-29967,-29968,-29968,-29969,-29971,-29972,-29972,-29973,-29974,-29974,-29975,-29975,-29975,-29976,-29976,-29977,-29977,-29978,-29978,-29979,-29979,-29980,-29980,-29981,-29981,-29982,-29982,-29983,-29983,-29984,-29984,-29985,-29985,-29986,-29986,-29987,-29987,-29987,-29987,-29987,-29987,-29988,-29988,-29989,-29989,-29990,-29992,-29993,-29993,-29994,-29994,-29995,-29995,-29996,-29996,-29997,-29997,-29998,-29998,-29999,-29999]} 1. e4 {[%emt 0:00:03]} e5 {[%emt 0:00:13]} 2. Nf3 {[%emt 0:00:11]} Nc6 {[%emt 0:00:22]} 3. Bb5 {[%emt 0:00:11]} a6 {[%emt 0:00:25]} 4. Ba4 {[%emt 0:00:03]} Nf6 {[%emt 0:00:12]} 5. O-O {[%emt 0:00:23]} Be7 {[%emt 0:00:23]} 6. Re1 {[%emt 0:00:39]} b5 {[%emt 0:00:19]} 7. Bb3 {[%emt 0:00:05]} d6 {[%emt 0:00:44]} 8. c3 {[%emt 0:00:50]} Na5 {[%emt 0:00:57]} 9. Bc2 {[%emt 0:02:17]} c5 {[%emt 0:00:23]} 10. d4 {[%emt 0:03:53]} cxd4 {[%emt 0:00:23]} 11. cxd4 {[%emt 0:00:01]} Bg4 {[%emt 0:00:24]} 12. dxe5 {[%emt 0:08:47]} Bxf3 {[%emt 0:00:15]} 13. Qxf3 {[%emt 0:03:41]} dxe5 {[%emt 0:00:19] The position is equal.} 14. Nc3 {[%emt 0:07:59]} O-O {[%emt 0:01:00]} 15. Nd5 {[%emt 0:05:21]} Rc8 {[%emt 0:08:50]} 16. Bd3 {[%emt 0:04:09]} Nc6 {[%emt 0:03:55][%cal Ba5c6,Bc6b4,Bb4d3][%mdl 32]} 17. Be3 {[%emt 0:12:29]} Nb4 {[%emt 0:06:16]} 18. Rad1 {[%emt 0:01:26]} (18. Nxb4 $11 Bxb4 19. Red1) 18... Nfxd5 $15 {[%emt 0:01:39]} 19. exd5 {[%emt 0:00:13]} Nxd3 {[%emt 0:00:29]} 20. Rxd3 {[%emt 0:00:03][%cal Od5d6]} Bd6 {[%emt 0:00:26]} 21. Qh5 {[%emt 0:06:27]} Qd7 {[%emt 0:03:21]} 22. Bd2 {[%emt 0:02:30] Black must now prevent Rh3.} g6 {[%emt 0:01:06]} 23. Qh6 {[%emt 0:00:36]} f6 {[%emt 0:02:25]} 24. Qe3 {[%emt 0:16:23]} Bc5 {[%emt 0:04:24]} 25. Qf3 {[%emt 0:00:17]} Bd4 {[%emt 0:00:36]} (25... Kg7 {looks sharper.} 26. Rc3 Rfd8 27. Rd1 Bd4) 26. Be3 {[%emt 0:02:09]} (26. Bh6 $11 {remains equal.} Rf7 27. Rd2) 26... Bxe3 {[%emt 0:00:58]} (26... Bxb2 $17 {And now ...Qd6 would win.} 27. d6 Kg7) 27. Qxe3 $11 {[%emt 0:01:51]} Qd6 {[%emt 0:01:40]} 28. Rc1 {[%emt 0:01:01]} Rxc1+ {[%emt 0:00:52]} 29. Qxc1 {[%emt 0:00:01][%mdl 4096] Endgame. KQR-KQR} Rf7 {[%emt 0:00:46]} 30. Qc8+ {[%emt 0:01:44]} Kg7 {[%emt 0:00:32]} 31. g3 {[%emt 0:05:35]} Rc7 {[%emt 0:00:19]} 32. Qe6 {[%emt 0:00:04]} Rd7 {[%emt 0:01:45] Hoping for ...Qxe6.} 33. Qg4 {[%emt 0:02:19]} f5 {[%emt 0:00:55]} 34. Qe2 {[%emt 0:00:23]} Rc7 {[%emt 0:03:19]} 35. Qd2 {[%emt 0:01:02]} Rc5 {[%emt 0:00:34]} 36. h4 {[%emt 0:00:29]} h6 {[%emt 0:01:08]} 37. Kh2 {[%emt 0:00:35]} Rc4 {[%emt 0:00:57]} 38. Qe3 {[%emt 0:01:54]} f4 {[%emt 0:01:27]} 39. Qa7+ {[%emt 0:01:13]} Rc7 {[%emt 0:00:28]} 40. Qb8 {[%emt 0:02:45]} fxg3+ {[%emt 0:01:50]} 41. Rxg3 {[%emt 0:30:08]} Rd7 {[%emt 0:33:09]} 42. Qxd6 {[%emt 0:00:00]} (42. Qc8 $5) 42... Rxd6 {[%emt 0:00:00] KR-KR} 43. h5 {[%emt 0:00:00]} g5 {[%emt 0:00:00]} 44. Rc3 {[%emt 0:00:00]} Kf6 {[%emt 0:00:00][%cal Oe5e4]} 45. f3 {[%emt 0:00:00]} Kf5 {[%emt 0:00:00][%cal Og5g4]} 46. Kg3 {[%emt 0:00:00]} Rxd5 {[%emt 0:00:00]} 47. Rc6 {[%emt 0:00:00][%csl LRa6,LRh6]} Rd3 {[%emt 0:00:00] ...e4 is the strong threat.} 48. Rc8 {[%emt 0:00:00] [#]} (48. Kf2 $11) 48... Rd6 {[%emt 0:00:00]} (48... g4 $1 $17 49. Rf8+ Kg5 50. Rg8+ Kxh5 51. Rxg4 a5) 49. Rb8 {[%emt 0:00:00]} e4 {[%emt 0:00:00]} 50. Rf8+ {[%emt 0:00:00]} Ke5 {[%emt 0:00:00]} 51. fxe4 {[%emt 0:00:00]} Kxe4 {[%emt 0:00:00]} 52. Rg8 {[%emt 0:00:00]} Ke5 {[%emt 0:00:00]} 53. Re8+ {[%emt 0:00:00]} Re6 {[%emt 0:00:00]} 54. Rg8 {[%emt 0:00:00]} Rd6 {[%emt 0:00:00]} (54... Kd4 $15) 55. Rh8 {[%emt 0:00:00]} Kf5 {[%emt 0:00:00]} 56. Rf8+ {[%emt 0:00:00]} Ke4 {[%emt 0:00:00]} 57. Rg8 {[%emt 0:00:00]} Ke5 {[%emt 0:00:00]} 58. Re8+ {[%emt 0:00:00]} Kf6 {[%emt 0:00:00]} 59. Ra8 {[%emt 0:01:03]} Rd3+ {[%emt 0:00:00]} 60. Kg4 {[%emt 0:00:18]} Rd4+ {[%emt 0:00:00]} 61. Kg3 {[%emt 0:00:01]} Rd6 {[%emt 0:00:00]} 62. Kg4 {[%emt 0:00:19]} Ke5 {[%emt 0:00:00]} 63. Re8+ {[%emt 0:02:15]} Kd5 {[%emt 0:00:00]} 64. Kf5 {[%emt 0:02:14]} a5 {[%emt 0:00:00]} 65. Rb8 {[%emt 0:03:07]} (65. Ra8 $1 $11) 65... Kc5 {[%emt 0:00:10]} 66. Rc8+ {[%emt 0:00:06]} Kb4 {[%emt 0:01:11]} (66... Kd4 $17 67. Rb8 b4) 67. Rc2 $1 {[%emt 0:02:32]} a4 {[%emt 0:01:45]} 68. Rg2 {[%emt 0:00:01]} (68. Ke5 $11 Rd7 69. Kf5) 68... Rc6 {[%emt 0:01:00]} ({Black should play} 68... Kc4 $17 {Strongly threatening ...Kd3.} 69. Rc2+ Kd3) 69. Rg4+ {[%emt 0:00:12]} Ka5 {[%emt 0:01:11]} (69... Rc4 $15 70. Rg3 Rc5+ 71. Kg6 Rc6+ 72. Kf5 Kc4) 70. a3 {[%emt 0:00:35]} (70. b4+ $11 {feels stronger.} axb3 71. axb3) 70... Rc2 {[%emt 0:01:21]} (70... Rc4 $15 71. Rg2 Rc6) 71. Kg6 {[%emt 0:00:03]} Rxb2 {[%emt 0:00:26]} 72. Kxh6 {[%emt 0:00:01]} Rb3 {[%emt 0:00:43]} 73. Kxg5 {[%emt 0:00:02] Threatens to win with h6.} Rxa3 {[%emt 0:00:53]} 74. h6 {[%emt 0:00:00] aiming for h7.} Rc3 {[%emt 0:06:54]} (74... Rh3 $5 75. Rh4 $8 Rc3 $11) 75. h7 {[%emt 0:00:17]} Rc8 {[%emt 0:00:40]} 76. Kf4 $2 {[%emt 0:00:10][%mdl 8192] White is now going downhill.} (76. Kh6 $11) 76... Rh8 {[%emt 0:01:15] Black mates.} 77. Rg7 {[%emt 0:00:04]} a3 {[%emt 0:01:18]} 78. Ke3 {[%emt 0:00:01]} Kb4 {[%emt 0:00:51]} 79. Ra7 {[%emt 0:01:03] [#]} a2 $1 {[%emt 0:00:31][%mdl 512]} 80. Rxa2 {[%emt 0:00:02]} Rxh7 {[%emt 0:00:22]} 81. Kd3 {[%emt 0:01:43]} Kb3 {[%emt 0:00:10]} 82. Ra1 {[%emt 0:00:14]} Rd7+ {[%emt 0:00:08]} 83. Ke2 {[%emt 0:00:01]} b4 {[%emt 0:00:24]} 84. Ra8 {[%emt 0:00:29]} Kc2 {[%emt 0:00:21]} 85. Rc8+ {[%emt 0:00:03]} Kb2 {[%emt 0:00:14]} 86. Rb8 {[%emt 0:00:09]} b3 {[%emt 0:00:09]} 87. Rb6 {[%emt 0:00:01]} Kc2 {[%emt 0:00:27]} 88. Rc6+ {[%emt 0:00:02] [#]} Kb1 $1 {[%emt 0:00:15]} 89. Rb6 {[%emt 0:00:02]} b2 {[%emt 0:00:12]} 90. Rb8 {[%emt 0:00:02]} Ra7 {[%emt 0:00:31]} 91. Kd2 {[%emt 0:00:49]} Ka2 {[%emt 0:00:39]} 92. Kc2 {[%emt 0:02:26] [#]} b1=Q+ $1 {[%emt 0:00:10][%mdl 512]} 93. Rxb1 {[%emt 0:00:11]} Rc7+ {[%emt 0:00:04]} 94. Kd3 {[%emt 0:00:03]} Kxb1 {[%emt 0:00:09] KR-K} 95. Kd4 {[%emt 0:00:04]} Kc2 {[%emt 0:00:30]} 96. Ke4 {[%emt 0:00:30]} Kc3 {[%emt 0:00:12]} 97. Kd5 {[%emt 0:00:04]} Rc4 {[%emt 0:00:10]} 98. Ke5 {[%emt 0:00:02]} Rd4 {[%emt 0:00:12]} 99. Kf5 {[%emt 0:00:03]} Kd3 {[%emt 0:00:11]} 100. Ke5 {[%emt 0:00:03]} Ke3 {[%emt 0:00:12]} 101. Kf5 {[%emt 0:00:02]} Re4 {[%emt 0:00:19]} 102. Kf6 {[%emt 0:00:04]} Kf4 {[%emt 0:00:06]} 103. Kg6 {[%emt 0:00:05]} Re6+ {[%emt 0:00:11]} 104. Kf7 {[%emt 0:00:05]} Kf5 {[%emt 0:00:08]} 105. Kg7 {[%emt 0:00:03]} Re7+ {[%emt 0:00:15]} 106. Kf8 {[%emt 0:00:03]} Kf6 {[%emt 0:00:11]} 107. Kg8 {[%emt 0:00:04]} Ra7 {[%emt 0:00:09]} 108. Kh8 {[%emt 0:00:04]} Kg6 {[%emt 0:00:05][%cal Ra7a8]} 109. Kg8 {[%emt 0:00:05]} Ra8# {[%emt 0:00:04] Weighted Error Value: White=0.14 (very precise) /Black=0.11 (very precise) .  Loses game:     	White=1     	---        Mistake:       	White=6     	Black=7      Inaccurate:     	White=7     	Black=6      OK:         	White=25    	Black=21     Best:        	White=9     	Black=2      Strong:       	White=1     	---} 0-1

[Event "ECo-C Extraliga 2023-24"]
[Site "Slovakia"]
[Date "2024.02.25"]
[Round "8.5"]
[White "Nadzamova, Viktoria"]
[Black "Cech, Pavel"]
[Result "0-1"]
[ECO "C01"]
[WhiteElo "2079"]
[BlackElo "2346"]
[Annotator "TA"]
[PlyCount "102"]
[EventDate "2023.10.06"]
[EventType "team-tourn"]
[EventCountry "SVK"]
[SourceTitle "playchess.com"]
[Source "ChessBase"]
[SourceQuality "1"]
[TimeControl "40/5400+30:1800+30"]

{[%evp 23,102,3,11,-13,-12,-13,-11,-15,0,0,0,-25,0,-4,0,-7,-14,-27,-14,-20,-6,-25,-14,-37,-29,-45,-34,-36,-35,-34,-31,-61,-63,-49,-47,-72,-58,-62,0,0,0,-96,-68,-80,-76,-84,-95,-91,-59,-192,-28,-10,-13,-75,-75,-161,-166,-656,-641,-2148,-1835,-29975,-29976,-29976,-29977,-29976,-29976,-29976,-29977,-29977,-29978,-29978,-29979,-29992,-29993,-29993,-29994,-29994,-29995,-29995,0]} 1. e4 {[%emt 0:00:03]} e6 {[%emt 0:01:06]} 2. d4 {[%emt 0:00:11]} d5 {[%emt 0:00:07]} 3. exd5 {[%emt 0:00:35]} exd5 {[%emt 0:00:08]} 4. Nf3 {[%emt 0:00:06]} Nf6 {[%emt 0:03:56]} 5. Bd3 {[%emt 0:00:26]} Bd6 {[%emt 0:01:35]} 6. O-O {[%emt 0:00:25]} O-O {[%emt 0:00:05]} 7. Bg5 {[%emt 0:01:15]} Bg4 {[%emt 0:08:29]} 8. Nbd2 {[%emt 0:02:07]} Nbd7 {[%emt 0:06:42]} 9. c3 {[%emt 0:00:44]} c6 {[%emt 0:01:41]} 10. Qc2 {[%emt 0:01:48]} Qc7 {[%emt 0:01:38]} 11. Rfe1 {[%emt 0:00:51]} Rfe8 {[%emt 0:01:42]} 12. h3 {[%emt 0:09:13] has lost popularity (12.Bh4).} Bh5 {[%emt 0:05:25]} 13. b3 {[%emt 0:18:32] C01: French: Exchange Variation.} (13. Nh4 {is more complex.} Bh2+ 14. Kf1 Bd6 15. Ndf3) 13... Bg6 {[%emt 0:08:36]} 14. Bxg6 {[%emt 0:09:56]} hxg6 {[%emt 0:00:44]} 15. Rad1 {[%emt 0:01:26]} Nh5 $146 {[%emt 0:08:47]} ({Predecessor:} 15... Rac8 16. Rxe8+ Rxe8 17. Re1 Rxe1+ 18. Nxe1 Qd8 19. Nef3 {½-½ Ackermann,R (2036)-Roller,P (1890) Luxembourg-ch 1999 (7)}) 16. c4 {[%emt 0:03:44]} Ndf6 {[%emt 0:01:38]} 17. cxd5 {[%emt 0:11:15]} Nxd5 {[%emt 0:04:13]} 18. Nc4 {[%emt 0:02:33]} Bb4 {[%emt 0:02:00]} 19. Rxe8+ {[%emt 0:02:01]} Rxe8 {[%emt 0:00:10]} 20. a3 {[%emt 0:00:22]} Bf8 {[%emt 0:02:34]} 21. Bc1 {[%emt 0:04:43]} Nhf4 {[%emt 0:04:25]} 22. Nce5 {[%emt 0:02:22]} Bd6 {[%emt 0:04:00]} 23. g3 {[%emt 0:05:13]} Ne6 {[%emt 0:02:08][%cal Oe6d4]} (23... Nxh3+ 24. Kg2 Bxe5 25. Nxe5 $16) 24. Nc4 {[%emt 0:02:30]} Be7 {[%emt 0:02:59]} 25. Re1 {[%emt 0:03:00][%cal Oe1e6]} Bf6 {[%emt 0:03:01]} 26. Bb2 {[%emt 0:03:56]} Ne7 {[%emt 0:05:21]} 27. Ne3 {[%emt 0:01:22] Dodges Nf5} Rd8 {[%emt 0:02:40]} 28. Rd1 {[%emt 0:01:32]} Qa5 {[%emt 0:03:58]} 29. Kg2 {[%emt 0:02:14]} Nf5 {[%emt 0:06:23]} 30. Bc3 {[%emt 0:00:46]} Qxa3 {[%emt 0:03:41]} (30... Nxe3+ $15 31. fxe3 Qxa3) 31. Nxf5 $11 {[%emt 0:00:17]} gxf5 {[%emt 0:00:04]} 32. Ra1 {[%emt 0:00:16]} (32. b4 $11 Qa6 33. d5 cxd5 (33... Bxc3 34. dxe6 Rxd1 35. Qxd1 $11) 34. Bxf6 gxf6 35. Qxf5) 32... Qe7 {[%emt 0:01:41]} 33. Qxf5 {[%emt 0:00:25]} a6 {[%emt 0:02:10][%cal Rf6d4]} (33... Nxd4 34. Nxd4 Bxd4 35. Bxd4 Rxd4 36. Rxa7) (33... Bxd4 34. Nxd4 Nxd4 35. Bxd4 Rxd4 36. Rxa7) 34. Re1 {[%emt 0:01:46]} Rd5 {[%emt 0:00:13]} (34... Bxd4 35. Bxd4 Nxd4 36. Rxe7 $18) 35. Qe4 {[%emt 0:01:38]} Qd8 {[%emt 0:00:48][%cal Oa6a5]} 36. Ne5 {[%emt 0:02:52] [#]} ({Better is} 36. h4 $15) 36... Nxd4 $2 {[%emt 0:00:22]} (36... Bxe5 $1 $19 37. dxe5 c5) 37. Ng4 {[%emt 0:00:29]} Bg5 {[%emt 0:01:27] Hoping for ...f5.} (37... Nxb3 $2 38. Bxf6 (38. Qe8+ Qxe8 39. Rxe8+ Kh7 $18) 38... gxf6 39. Qf4 $18 (39. Qf3 Rb5 $18)) 38. h4 {[%emt 0:02:06]} (38. f4 $1 $11 f5 (38... Nb5 39. fxg5 Nxc3 40. Qe8+ Qxe8 41. Rxe8+ Kh7 42. Ne5 $15) 39. Qe3 fxg4 40. fxg5 gxh3+ (40... Nxb3 41. g6 Qd6 42. Qe8+ Qf8 43. Qe6+ Kh8 44. hxg4) 41. Kh1 Rxg5 (41... Nxb3 42. g6 Qd6 43. Qe8+ Qf8 44. Qe6+ Kh8 45. Qxh3+) 42. Qxd4 (42. Bxd4 Qd5+ 43. Qe4 Rxg3 $11) 42... Qxd4 43. Bxd4) 38... f5 $17 {[%emt 0:00:56]} 39. Qb1 {[%emt 0:00:50]} (39. Qe8+ $17 Qxe8 40. Rxe8+ Kh7 (40... Kf7 41. Rb8 $17) 41. hxg5 fxg4 42. b4) 39... fxg4 $19 {[%emt 0:01:12]} 40. hxg5 $2 {[%emt 0:00:33]} (40. Bxd4 Rxd4 41. hxg5 Qxg5 42. Kg1) 40... Nf3 {[%emt 0:01:06]} (40... Qxg5 41. Qe4 Nf5 (41... Nxb3 42. Qe6+ Kh7 43. Rh1+) 42. Qe8+ Kh7 43. Qc8 $11) 41. Rh1 {[%emt 0:04:32]} Rd3 {[%emt 0:03:34][%cal Od8d5] aiming for ...Qd5!} ({Stronger than} 41... Qxg5 42. Qe4 Kf7 43. Rh8 $11) 42. Rh8+ {[%emt 0:06:31]} Kxh8 {[%emt 0:00:15]} 43. Qh1+ {[%emt 0:00:05]} Kg8 {[%emt 0:00:03]} 44. Bxg7 {[%emt 0:00:13]} Rd1 {[%emt 0:06:30]} 45. Qh8+ {[%emt 0:00:36]} Kf7 {[%emt 0:00:04][%csl Gf3][%cal Rd1g1]} 46. Qh5+ {[%emt 0:00:27]} Kxg7 {[%emt 0:00:15][%csl Gf3][%cal Rd1g1]} 47. Qh6+ {[%emt 0:00:52]} Kf7 {[%emt 0:02:59][%csl Gf3][%cal Rd1g1]} 48. Qh7+ {[%emt 0:01:25]} Ke6 {[%emt 0:00:58][%csl Gf3][%cal Rd1g1]} 49. Qg6+ {[%emt 0:02:11]} Ke5 {[%emt 0:00:41][%csl Gf3][%cal Rd1g1]} 50. Qg7+ {[%emt 0:00:28]} Kd6 {[%emt 0:01:01][%csl Gf3][%cal Rd1g1]} 51. Qg6+ {[%emt 0:00:40]} Ke5 $2 (51... Kc5 {mates} 52. Qf5+ Qd5 (52... Kb6 53. Qxg4 Nxg5 54. Qb4+ Ka7 55. Qc5+ Ka8 56. g4 Qh8 57. Qxg5 Qh1+ 58. Kg3 Rd3+ 59. Qe3 Rxe3+ 60. fxe3 a5 61. Kf2 Qd5 62. g5 Qxb3 63. e4 a4 64. e5 a3 65. e6 Qxe6 66. g6 a2 67. g7 a1=Q 68. g8=Q+ Qxg8 69. Kf3 Qc3+ 70. Ke2 Qg2+ 71. Kd1 Qg4#) 53. Qc2+ Kb6 (53... Kb4 $2 {is a self mate.} 54. Qxd1 Nh4+ 55. Kh2 Qg2#) 54. Qc5+ Qxc5 55. g6 Rg1#) 0-1

[Event "ECo-C Extraliga 2023-24"]
[Site "Slovakia"]
[Date "2024.02.25"]
[Round "8.6"]
[White "Lipka, Juraj"]
[Black "Lanc, Alois"]
[Result "1/2-1/2"]
[ECO "A43"]
[WhiteElo "2356"]
[BlackElo "2248"]
[Annotator "RC"]
[PlyCount "97"]
[EventDate "2023.10.06"]
[EventType "team-tourn"]
[EventCountry "SVK"]
[SourceTitle "playchess.com"]
[Source "ChessBase"]
[SourceQuality "1"]
[TimeControl "40/5400+30:1800+30"]

1. d4 {[%emt 0:00:04]} Nf6 {[%emt 0:00:51]} 2. Nc3 {[%emt 0:00:33]} c5 {[%emt 0:00:44]} 3. d5 {[%emt 0:00:19]} d6 {[%emt 0:02:05]} 4. e4 {[%emt 0:00:48]} g6 {[%emt 0:00:05]} 5. Bb5+ {[%emt 0:00:59]} Bd7 {[%emt 0:00:58]} 6. a4 {[%emt 0:00:14]} Bg7 {[%emt 0:00:08]} 7. Nf3 {[%emt 0:03:27]} O-O {[%emt 0:01:26]} 8. h3 {[%emt 0:05:33]} Na6 {[%emt 0:02:52]} 9. O-O {[%emt 0:03:24]} Bxb5 {[%emt 0:04:07]} 10. axb5 {[%emt 0:00:21]} Nc7 {[%emt 0:00:04]} 11. Qd3 {[%emt 0:06:59]} a6 {[%emt 0:05:06]} 12. bxa6 {[%emt 0:06:39]} Nxa6 {[%emt 0:03:44]} 13. Bf4 {[%emt 0:08:41]} Ne8 {[%emt 0:01:43]} 14. Qd2 {[%emt 0:07:05]} Nac7 {[%emt 0:05:48]} 15. e5 {[%emt 0:14:41]} Rxa1 {[%emt 0:02:21]} 16. Rxa1 {[%emt 0:00:40]} dxe5 {[%emt 0:01:47]} 17. Nxe5 {[%emt 0:02:23]} Nf6 {[%emt 0:08:28]} 18. Rd1 {[%emt 0:02:41]} e6 {[%emt 0:10:07]} 19. d6 {[%emt 0:01:17]} Ncd5 {[%emt 0:02:17]} 20. Bh2 {[%emt 0:00:33]} Nxc3 {[%emt 0:04:20]} 21. Qxc3 {[%emt 0:04:09]} Nd7 {[%emt 0:03:07]} 22. Qe3 {[%emt 0:01:51]} Bxe5 {[%emt 0:15:03]} 23. Bxe5 {[%emt 0:00:05]} f6 {[%emt 0:08:08]} 24. Bc3 {[%emt 0:00:21]} Re8 {[%emt 0:01:18]} 25. f4 {[%emt 0:01:23]} Qc8 {[%emt 0:03:01]} 26. Qe4 {[%emt 0:06:03]} Kf7 {[%emt 0:01:25]} 27. g4 {[%emt 0:05:57]} f5 {[%emt 0:02:23]} 28. Qf3 {[%emt 0:04:12]} Qc6 {[%emt 0:02:56]} 29. Qxc6 {[%emt 0:01:25]} bxc6 {[%emt 0:00:01]} 30. Ra1 {[%emt 0:01:30]} e5 {[%emt 0:02:08]} 31. Ra7 {[%emt 0:05:09]} Ke6 {[%emt 0:00:13]} 32. Bxe5 {[%emt 0:00:25]} Rf8 {[%emt 0:02:49]} 33. Rc7 {[%emt 0:03:00]} g5 {[%emt 0:00:26]} 34. Rxc6 {[%emt 0:02:26]} gxf4 {[%emt 0:00:39]} 35. Bxf4 {[%emt 0:00:16]} fxg4 {[%emt 0:00:19]} 36. Bg3 {[%emt 0:00:34]} gxh3 {[%emt 0:01:52]} 37. Kh2 {[%emt 0:01:00]} Rb8 {[%emt 0:01:28]} 38. b3 {[%emt 0:00:09]} Ra8 {[%emt 0:00:20]} 39. Kxh3 {[%emt 0:00:55]} Ra2 {[%emt 0:01:52]} 40. c4 {[%emt 0:00:12]} Rb2 {[%emt 0:01:25]} 41. Rc8 {[%emt 0:31:08]} Rxb3 {[%emt 0:30:35]} 42. Re8+ {[%emt 0:01:20]} Kf5 {[%emt 0:00:00]} 43. Re7 {[%emt 0:00:00]} Nf6 {[%emt 0:00:00]} 44. d7 {[%emt 0:00:00]} Rd3 {[%emt 0:00:00]} 45. Re5+ {[%emt 0:00:00]} Kg6 {[%emt 0:00:00]} 46. Re6 {[%emt 0:00:00]} Kf5 {[%emt 0:00:00]} 47. Re5+ {[%emt 0:00:00]} Kg6 {[%emt 0:00:00]} 48. Re6 {[%emt 0:00:00]} Kf5 {[%emt 0:00:00]} 49. Re5+ {[%emt 0:00:00]} 1/2-1/2

[Event "ECo-C Extraliga 2023-24"]
[Site "Slovakia"]
[Date "2024.02.25"]
[Round "8.6"]
[White "Motuz, Karol"]
[Black "Molnar, Erno"]
[Result "1-0"]
[ECO "A20"]
[WhiteElo "2294"]
[BlackElo "2256"]
[Annotator "ChessBase"]
[PlyCount "81"]
[EventDate "2023.10.06"]
[EventType "team-tourn"]
[EventCountry "SVK"]
[SourceTitle "playchess.com"]
[Source "ChessBase"]
[SourceQuality "1"]
[TimeControl "40/5400+30:1800+30"]

1. c4 {[%emt 0:00:05]} e5 {[%emt 0:00:35]} 2. a3 {[%emt 0:00:15]} Nf6 {[%emt 0:04:54]} 3. d3 {[%emt 0:00:12]} c6 {[%emt 0:06:19]} 4. Nf3 {[%emt 0:00:52]} d6 {[%emt 0:01:02]} 5. g3 {[%emt 0:01:02]} Be7 {[%emt 0:02:14]} 6. Bg2 {[%emt 0:00:11]} O-O {[%emt 0:00:10]} 7. O-O {[%emt 0:00:21]} Nbd7 {[%emt 0:02:36]} 8. Nc3 {[%emt 0:05:09]} Re8 {[%emt 0:03:44]} 9. e4 {[%emt 0:04:37]} Nf8 {[%emt 0:22:23]} 10. h3 {[%emt 0:03:37]} Ng6 {[%emt 0:05:09]} 11. d4 {[%emt 0:02:39]} Be6 {[%emt 0:06:15]} 12. d5 {[%emt 0:04:09]} Bd7 {[%emt 0:00:40]} 13. Be3 {[%emt 0:03:26]} Rf8 {[%emt 0:04:58]} 14. Rc1 {[%emt 0:10:36]} c5 {[%emt 0:05:06]} 15. b4 {[%emt 0:07:05]} b6 {[%emt 0:00:19]} 16. Ne1 {[%emt 0:03:13]} Ne8 {[%emt 0:00:57]} 17. Nd3 {[%emt 0:01:23]} Qc8 {[%emt 0:06:21]} 18. bxc5 {[%emt 0:17:37]} bxc5 {[%emt 0:00:15]} 19. Kh2 {[%emt 0:01:13]} Qa6 {[%emt 0:05:08]} 20. a4 {[%emt 0:02:59]} Bd8 {[%emt 0:04:51]} 21. Nb5 {[%emt 0:02:53]} Ba5 {[%emt 0:01:47]} 22. h4 {[%emt 0:04:07]} f6 {[%emt 0:01:50]} 23. h5 {[%emt 0:00:22]} Nh8 {[%emt 0:01:14]} 24. Nxd6 {[%emt 0:04:08]} Nxd6 {[%emt 0:02:00]} 25. Nxc5 {[%emt 0:00:13]} Qc8 {[%emt 0:00:30]} 26. Nxd7 {[%emt 0:00:18]} Qxd7 {[%emt 0:00:27]} 27. c5 {[%emt 0:00:08]} Ne8 {[%emt 0:02:49]} 28. Bh3 {[%emt 0:00:19]} Qd8 {[%emt 0:00:29]} 29. d6 {[%emt 0:01:54]} Nf7 {[%emt 0:02:57]} 30. Qd5 {[%emt 0:01:12]} Bb4 {[%emt 0:00:35]} 31. Be6 {[%emt 0:01:39]} a5 {[%emt 0:03:58]} 32. f4 {[%emt 0:01:27]} exf4 {[%emt 0:00:35]} 33. Bxf4 {[%emt 0:01:01]} g5 {[%emt 0:03:04]} 34. hxg6 {[%emt 0:01:15]} hxg6 {[%emt 0:00:13]} 35. e5 {[%emt 0:00:42]} Kg7 {[%emt 0:00:53]} 36. Bxf7 {[%emt 0:11:47]} Rxf7 {[%emt 0:00:04]} 37. Bh6+ {[%emt 0:00:08]} Kxh6 {[%emt 0:00:22]} 38. Qxf7 {[%emt 0:00:09]} fxe5 {[%emt 0:00:09]} 39. Rc4 {[%emt 0:01:03]} Rb8 {[%emt 0:01:34]} 40. Rh4+ {[%emt 0:00:33]} Kg5 {[%emt 0:00:01]} 41. Qf3 {[%emt 0:30:48]} 1-0